[Event "*** Titled Tuesday Blitz"]
[Site "Chess.com"]
[Date "2020.12.29"]
[Round "3"]
[White "Grandelicious"]
[Black "Leonid_Starozhilov"]
[Result "1-0"]
[WhiteElo "2855"]
[BlackElo "2629"]
[TimeControl "180+1"]
[EndTime "10:29:22 PST"]
[Termination "Grandelicious won on time"]

1. Nf3 {[%clk 0:03:00.9]} 1... Nf6 {[%clk 0:03:00.1]} 2. g3 {[%clk 0:03:00.9]}
2... g6 {[%clk 0:03:00.2]} 3. b3 {[%clk 0:03:01.3]} 3... Bg7 {[%clk 0:03:01.1]}
4. Bb2 {[%clk 0:03:01.9]} 4... O-O {[%clk 0:03:02]} 5. Bg2 {[%clk 0:03:01.9]}
5... d5 {[%clk 0:02:59.3]} 6. c4 {[%clk 0:03:01.7]} 6... c6 {[%clk 0:02:53.7]}
7. O-O {[%clk 0:03:01.4]} 7... Bg4 {[%clk 0:02:53.2]} 8. d3 {[%clk 0:03:01.3]}
8... Bxf3 {[%clk 0:02:53.3]} 9. Bxf3 {[%clk 0:03:01.6]} 9... Nbd7 {[%clk
0:02:51.9]} 10. Nd2 {[%clk 0:02:56.2]} 10... e6 {[%clk 0:02:44.9]} 11. a3 {[%clk
0:02:52]} 11... Ne8 {[%clk 0:02:41.2]} 12. d4 {[%clk 0:02:48.1]} 12... Nd6
{[%clk 0:02:39]} 13. e3 {[%clk 0:02:29.2]} 13... h5 {[%clk 0:02:33.5]} 14. a4
{[%clk 0:02:27.6]} 14... Re8 {[%clk 0:02:33.4]} 15. Bg2 {[%clk 0:02:22.6]} 15...
Nf6 {[%clk 0:02:26.6]} 16. Qe2 {[%clk 0:02:18.9]} 16... Nde4 {[%clk 0:02:26.1]}
17. Nf3 {[%clk 0:02:16.8]} 17... Rc8 {[%clk 0:02:15.1]} 18. a5 {[%clk
0:02:15.9]} 18... a6 {[%clk 0:02:14.5]} 19. Ne5 {[%clk 0:02:11.4]} 19... Nd7
{[%clk 0:02:12.3]} 20. Nd3 {[%clk 0:02:11.1]} 20... Kh7 {[%clk 0:01:59.2]} 21.
Nf4 {[%clk 0:01:28.9]} 21... Ndf6 {[%clk 0:01:48.5]} 22. f3 {[%clk 0:01:26.2]}
22... Nd6 {[%clk 0:01:48.2]} 23. e4 {[%clk 0:01:26.7]} 23... Ng8 {[%clk
0:01:22.7]} 24. e5 {[%clk 0:01:14]} 24... Nf5 {[%clk 0:01:22.8]} 25. Rfd1 {[%clk
0:01:10.4]} 25... Bh6 {[%clk 0:01:17.8]} 26. Nh3 {[%clk 0:01:05.3]} 26... Rc7
{[%clk 0:00:50.3]} 27. Rd3 {[%clk 0:01:03.6]} 27... Rd7 {[%clk 0:00:49.1]} 28.
c5 {[%clk 0:00:57.5]} 28... f6 {[%clk 0:00:38.4]} 29. f4 {[%clk 0:00:37.7]}
29... Ng7 {[%clk 0:00:38.5]} 30. exf6 {[%clk 0:00:32.2]} 30... Nxf6 {[%clk
0:00:39.4]} 31. Bc3 {[%clk 0:00:31]} 31... Nf5 {[%clk 0:00:39.2]} 32. Re1 {[%clk
0:00:30.6]} 32... Rde7 {[%clk 0:00:37.9]} 33. Bf3 {[%clk 0:00:30.8]} 33... Kg8
{[%clk 0:00:34.3]} 34. Qg2 {[%clk 0:00:30.7]} 34... Rg7 {[%clk 0:00:28.8]} 35.
Rd2 {[%clk 0:00:27.6]} 35... Qd7 {[%clk 0:00:21.3]} 36. Rde2 {[%clk 0:00:27.7]}
36... Kh7 {[%clk 0:00:19.4]} 37. b4 {[%clk 0:00:20.4]} 37... Rgg8 {[%clk
0:00:19.6]} 38. Nf2 {[%clk 0:00:19.7]} 38... Rg7 {[%clk 0:00:18.7]} 39. Nd3
{[%clk 0:00:19.7]} 39... Rgg8 {[%clk 0:00:17.8]} 40. Ne5 {[%clk 0:00:20.2]}
40... Qg7 {[%clk 0:00:16]} 41. Kh1 {[%clk 0:00:20.6]} 41... Nd7 {[%clk
0:00:15.6]} 42. Nd3 {[%clk 0:00:18.1]} 42... Qf7 {[%clk 0:00:12.6]} 43. Qh3
{[%clk 0:00:18.1]} 43... Rg7 {[%clk 0:00:07.1]} 44. g4 {[%clk 0:00:17.2]} 44...
hxg4 {[%clk 0:00:07.3]} 45. Bxg4 {[%clk 0:00:18.1]} 45... Kg8 {[%clk 0:00:05]}
46. Rg2 {[%clk 0:00:15.5]} 46... Rh7 {[%clk 0:00:03.2]} 47. Bxf5 {[%clk
0:00:15]} 47... exf5 {[%clk 0:00:04.1]} 48. Rxe8+ {[%clk 0:00:14.9]} 48... Qxe8
{[%clk 0:00:04.6]} 49. Qxf5 {[%clk 0:00:15.4]} 49... Nf8 {[%clk 0:00:05.3]} 50.
Ne5 {[%clk 0:00:12.7]} 50... Rg7 {[%clk 0:00:04.3]} 51. Qg4 {[%clk 0:00:11.4]}
51... Kh7 {[%clk 0:00:04]} 52. Rg3 {[%clk 0:00:11.3]} 52... Qe6 {[%clk
0:00:04.1]} 53. Qh4 {[%clk 0:00:11.3]} 53... Qf5 {[%clk 0:00:02.8]} 54. Rh3
{[%clk 0:00:08.4]} 54... Qb1+ {[%clk 0:00:01.3]} 55. Be1 {[%clk 0:00:07.3]} 1-0

[Event "*** Titled Tuesday Blitz"]
[Site "Chess.com"]
[Date "2020.12.29"]
[Round "3"]
[White "vinniethepooh"]
[Black "alexgo05"]
[Result "1-0"]
[WhiteElo "2700"]
[BlackElo "2483"]
[TimeControl "180+1"]
[EndTime "10:29:25 PST"]
[Termination "vinniethepooh won on time"]

1. d4 {[%clk 0:03:00.9]} 1... e6 {[%clk 0:02:58.8]} 2. c4 {[%clk 0:03:01.4]}
2... f5 {[%clk 0:02:58.6]} 3. g3 {[%clk 0:03:00.8]} 3... Nf6 {[%clk 0:02:58.9]}
4. Bg2 {[%clk 0:03:01.4]} 4... d5 {[%clk 0:02:59.4]} 5. Nf3 {[%clk 0:02:56.6]}
5... c6 {[%clk 0:02:58.1]} 6. O-O {[%clk 0:02:57.1]} 6... Bd6 {[%clk 0:02:57.4]}
7. b3 {[%clk 0:02:56.8]} 7... Qe7 {[%clk 0:02:56.4]} 8. Bb2 {[%clk 0:02:55.9]}
8... O-O {[%clk 0:02:55.9]} 9. Nbd2 {[%clk 0:02:51.1]} 9... a5 {[%clk
0:02:47.7]} 10. a3 {[%clk 0:02:43]} 10... Nbd7 {[%clk 0:02:46.4]} 11. Ne5 {[%clk
0:02:41.4]} 11... Ne4 {[%clk 0:02:41]} 12. Nd3 {[%clk 0:02:34.5]} 12... a4
{[%clk 0:02:08.9]} 13. c5 {[%clk 0:02:27]} 13... Bc7 {[%clk 0:02:04.7]} 14. b4
{[%clk 0:02:27.5]} 14... Nxd2 {[%clk 0:01:42.2]} 15. Qxd2 {[%clk 0:02:28.4]}
15... e5 {[%clk 0:01:42.8]} 16. dxe5 {[%clk 0:02:03.6]} 16... Nxe5 {[%clk
0:01:42.6]} 17. Nxe5 {[%clk 0:02:01.7]} 17... Bxe5 {[%clk 0:01:43.5]} 18. Bxd5+
{[%clk 0:01:59.1]} 18... Kh8 {[%clk 0:01:37.1]} 19. Bg2 {[%clk 0:01:57]} 19...
f4 {[%clk 0:01:29.9]} 20. Bxe5 {[%clk 0:01:39.2]} 20... Qxe5 {[%clk 0:01:29.6]}
21. gxf4 {[%clk 0:01:39.8]} 21... Qh5 {[%clk 0:01:24.4]} 22. e3 {[%clk
0:01:33.5]} 22... Bh3 {[%clk 0:01:12.7]} 23. Qd1 {[%clk 0:01:33.4]} 23... Bg4
{[%clk 0:01:02.9]} 24. f3 {[%clk 0:01:09]} 24... Bh3 {[%clk 0:01:02.8]} 25. Qe1
{[%clk 0:01:06.5]} 25... Rae8 {[%clk 0:01:00.6]} 26. Bxh3 {[%clk 0:00:48.2]}
26... Qxh3 {[%clk 0:00:59.5]} 27. Qf2 {[%clk 0:00:48.4]} 27... Qe6 {[%clk
0:00:34]} 28. Rfe1 {[%clk 0:00:41.6]} 28... Qb3 {[%clk 0:00:32]} 29. Kh1 {[%clk
0:00:41.3]} 29... h6 {[%clk 0:00:31.4]} 30. Re2 {[%clk 0:00:33.3]} 30... Rf6
{[%clk 0:00:28.8]} 31. Rg1 {[%clk 0:00:20.8]} 31... Qxa3 {[%clk 0:00:27]} 32.
Qg3 {[%clk 0:00:19.8]} 32... Re7 {[%clk 0:00:25.3]} 33. e4 {[%clk 0:00:16.6]}
33... Qxb4 {[%clk 0:00:25.1]} 34. f5 {[%clk 0:00:12.2]} 34... Qxc5 {[%clk
0:00:24.7]} 35. Reg2 {[%clk 0:00:11.6]} 35... Qe5 {[%clk 0:00:22.8]} 36. Qxe5
{[%clk 0:00:09.1]} 36... Rxe5 {[%clk 0:00:22.6]} 37. Rxg7 {[%clk 0:00:10]} 37...
Re8 {[%clk 0:00:17.4]} 38. Rxb7 {[%clk 0:00:07.6]} 38... Ra8 {[%clk 0:00:16.9]}
39. Ra1 {[%clk 0:00:05.3]} 39... c5 {[%clk 0:00:14.7]} 40. Rc7 {[%clk
0:00:04.2]} 40... Ra5 {[%clk 0:00:11.4]} 41. Kg2 {[%clk 0:00:04.7]} 41... a3
{[%clk 0:00:10.4]} 42. Kg3 {[%clk 0:00:04.9]} 42... a2 {[%clk 0:00:10.4]} 43.
Kf4 {[%clk 0:00:01.9]} 43... Rb6 {[%clk 0:00:10.5]} 44. Rd1 {[%clk 0:00:02.1]}
44... Ra8 {[%clk 0:00:07.4]} 45. Ra1 {[%clk 0:00:02.3]} 45... Rb1 {[%clk
0:00:07.1]} 46. Rxa2 {[%clk 0:00:02.9]} 46... Rxa2 {[%clk 0:00:06.6]} 47. f6
{[%clk 0:00:03.8]} 47... Ra6 {[%clk 0:00:06.2]} 48. Kf5 {[%clk 0:00:03.6]} 48...
Rf1 {[%clk 0:00:06.1]} 49. f4 {[%clk 0:00:03.1]} 49... Rg1 {[%clk 0:00:04.1]}
50. e5 {[%clk 0:00:02.8]} 50... Rg8 {[%clk 0:00:03.6]} 51. e6 {[%clk 0:00:02.2]}
51... Rf8 {[%clk 0:00:03.7]} 52. f7 {[%clk 0:00:02.6]} 52... c4 {[%clk
0:00:02.2]} 53. Kf6 {[%clk 0:00:02.8]} 1-0

[Event "*** Titled Tuesday Blitz"]
[Site "Chess.com"]
[Date "2020.12.29"]
[Round "3"]
[White "Sharpchess22"]
[Black "lavr92"]
[Result "1-0"]
[WhiteElo "2816"]
[BlackElo "2602"]
[TimeControl "180+1"]
[EndTime "10:29:29 PST"]
[Termination "Sharpchess22 won by resignation"]

1. c4 {[%clk 0:03:00.9]} 1... e6 {[%clk 0:03:00]} 2. Nc3 {[%clk 0:03:00.1]} 2...
d5 {[%clk 0:03:00.3]} 3. d4 {[%clk 0:02:59.8]} 3... c6 {[%clk 0:03:00.7]} 4. e3
{[%clk 0:02:58.6]} 4... Bd6 {[%clk 0:02:59.9]} 5. Bd3 {[%clk 0:02:57.3]} 5... f5
{[%clk 0:03:00.2]} 6. Nge2 {[%clk 0:02:56.8]} 6... Nf6 {[%clk 0:02:59.8]} 7. f3
{[%clk 0:02:55.4]} 7... O-O {[%clk 0:03:00]} 8. Qc2 {[%clk 0:02:52.7]} 8... dxc4
{[%clk 0:02:57.4]} 9. Bxc4 {[%clk 0:02:51.9]} 9... Kh8 {[%clk 0:02:57.8]} 10. a3
{[%clk 0:02:50]} 10... b5 {[%clk 0:02:56.2]} 11. Ba2 {[%clk 0:02:49.4]} 11...
Qe7 {[%clk 0:02:52.9]} 12. O-O {[%clk 0:02:34.8]} 12... Nbd7 {[%clk 0:02:51.9]}
13. Bd2 {[%clk 0:02:17.2]} 13... a6 {[%clk 0:02:47.9]} 14. Rae1 {[%clk
0:02:14.1]} 14... c5 {[%clk 0:02:44.5]} 15. Kh1 {[%clk 0:02:10.2]} 15... Bb7
{[%clk 0:02:43]} 16. dxc5 {[%clk 0:01:56.9]} 16... Bxc5 {[%clk 0:02:30.8]} 17.
Nd4 {[%clk 0:01:55.7]} 17... Bxd4 {[%clk 0:02:17.2]} 18. exd4 {[%clk 0:01:54.4]}
18... Nh5 {[%clk 0:01:59]} 19. Bxe6 {[%clk 0:01:48.2]} 19... Qh4 {[%clk
0:01:30.9]} 20. Ne2 {[%clk 0:01:40.4]} 20... Rae8 {[%clk 0:01:28.8]} 21. Qb3
{[%clk 0:01:13.3]} 21... Rf6 {[%clk 0:01:18.2]} 22. d5 {[%clk 0:00:51.7]} 22...
Nc5 {[%clk 0:00:59.2]} 23. Qb4 {[%clk 0:00:51.4]} 23... Qxb4 {[%clk 0:00:57.6]}
24. Bxb4 {[%clk 0:00:49.2]} 24... Nxe6 {[%clk 0:00:54.6]} 25. dxe6 {[%clk
0:00:45.9]} 25... Rfxe6 {[%clk 0:00:55.5]} 26. Nd4 {[%clk 0:00:45.7]} 26... Rxe1
{[%clk 0:00:55.4]} 27. Bxe1 {[%clk 0:00:45]} 27... g6 {[%clk 0:00:48.6]} 28. Bc3
{[%clk 0:00:44.7]} 28... Kg8 {[%clk 0:00:48.5]} 29. g3 {[%clk 0:00:42.3]} 29...
Ng7 {[%clk 0:00:46.6]} 30. Kg1 {[%clk 0:00:40.3]} 30... Ne6 {[%clk 0:00:46.8]}
31. Nxe6 {[%clk 0:00:38.3]} 31... Rxe6 {[%clk 0:00:46.7]} 32. Kf2 {[%clk
0:00:39.2]} 32... Rd6 {[%clk 0:00:42.5]} 33. Ke3 {[%clk 0:00:38]} 33... Kf7
{[%clk 0:00:42]} 34. Be5 {[%clk 0:00:34.8]} 34... Rd7 {[%clk 0:00:39.9]} 35. Rc1
{[%clk 0:00:34.3]} 35... Ke6 {[%clk 0:00:39.7]} 36. Bf4 {[%clk 0:00:29]} 36...
Kf7 {[%clk 0:00:34.5]} 37. h4 {[%clk 0:00:28.2]} 37... Re7+ {[%clk 0:00:34.7]}
38. Kf2 {[%clk 0:00:28.6]} 38... h5 {[%clk 0:00:32]} 39. Rc5 {[%clk 0:00:26.4]}
39... Rd7 {[%clk 0:00:31.9]} 40. Ke3 {[%clk 0:00:26.1]} 40... Re7+ {[%clk
0:00:31.9]} 41. Be5 {[%clk 0:00:26.6]} 41... Rd7 {[%clk 0:00:30.1]} 42. Kf4
{[%clk 0:00:26.9]} 42... Ke6 {[%clk 0:00:28.1]} 43. Bc3 {[%clk 0:00:24.1]} 43...
Rd3 {[%clk 0:00:25.1]} 44. Kg5 {[%clk 0:00:24.1]} 44... Bxf3 {[%clk 0:00:16.9]}
45. Kxg6 {[%clk 0:00:21.4]} 45... Bg4 {[%clk 0:00:17.1]} 46. Rc6+ {[%clk
0:00:20.8]} 46... Rd6 {[%clk 0:00:16.9]} 47. Rc5 {[%clk 0:00:18.6]} 47... Rd5
{[%clk 0:00:16]} 48. Rc7 {[%clk 0:00:17.4]} 48... Rd3 {[%clk 0:00:16]} 49. Ra7
{[%clk 0:00:17.3]} 49... Rxg3 {[%clk 0:00:15.8]} 50. Rxa6+ {[%clk 0:00:17.7]}
50... Kd5 {[%clk 0:00:16.3]} 51. Kg5 {[%clk 0:00:17.8]} 51... b4 {[%clk
0:00:15.3]} 52. Ra5+ {[%clk 0:00:17.4]} 52... Ke4 {[%clk 0:00:15]} 53. axb4
{[%clk 0:00:18.3]} 53... Bh3+ {[%clk 0:00:14.5]} 54. Kxh5 {[%clk 0:00:18.4]}
54... f4 {[%clk 0:00:14.6]} 55. Re5+ {[%clk 0:00:18]} 55... Kd3 {[%clk
0:00:14.3]} 56. Rg5 {[%clk 0:00:15.8]} 56... Ke2 {[%clk 0:00:11.8]} 57. b5
{[%clk 0:00:15.7]} 57... Bg2 {[%clk 0:00:10.7]} 58. b6 {[%clk 0:00:15.3]} 58...
Be4 {[%clk 0:00:10.7]} 59. Be5 {[%clk 0:00:13.8]} 59... Rxg5+ {[%clk 0:00:10]}
60. Kxg5 {[%clk 0:00:14]} 60... f3 {[%clk 0:00:10.9]} 61. Bd4 {[%clk 0:00:14.2]}
61... Kd3 {[%clk 0:00:11.8]} 62. Bg1 {[%clk 0:00:13.6]} 62... Kc4 {[%clk
0:00:11.4]} 63. h5 {[%clk 0:00:14.1]} 63... Kb5 {[%clk 0:00:11.8]} 64. h6 {[%clk
0:00:14.4]} 64... Ka6 {[%clk 0:00:11.8]} 65. Kf6 {[%clk 0:00:14.7]} 1-0

[Event "*** Titled Tuesday Blitz"]
[Site "Chess.com"]
[Date "2020.12.29"]
[Round "3"]
[White "ZiggyStardust64"]
[Black "Salem-AR"]
[Result "0-1"]
[WhiteElo "2688"]
[BlackElo "2933"]
[TimeControl "180+1"]
[EndTime "10:29:31 PST"]
[Termination "Salem-AR won by resignation"]

1. e4 {[%clk 0:03:00.9]} 1... c5 {[%clk 0:02:56.7]} 2. Nf3 {[%clk 0:03:01]} 2...
d6 {[%clk 0:02:57.1]} 3. Bb5+ {[%clk 0:03:01.4]} 3... Nd7 {[%clk 0:02:57.2]} 4.
Ba4 {[%clk 0:03:01]} 4... Nf6 {[%clk 0:02:53.2]} 5. O-O {[%clk 0:03:01.1]} 5...
e6 {[%clk 0:02:53.6]} 6. Re1 {[%clk 0:03:00.4]} 6... Be7 {[%clk 0:02:51.9]} 7.
c3 {[%clk 0:03:00.4]} 7... c4 {[%clk 0:02:39.3]} 8. Bb5 {[%clk 0:02:57.2]} 8...
d5 {[%clk 0:02:33.2]} 9. exd5 {[%clk 0:02:45.1]} 9... exd5 {[%clk 0:02:34.1]}
10. d3 {[%clk 0:02:44.3]} 10... a6 {[%clk 0:02:32.9]} 11. Bxd7+ {[%clk
0:02:34.2]} 11... Bxd7 {[%clk 0:02:32.3]} 12. dxc4 {[%clk 0:02:35.1]} 12... dxc4
{[%clk 0:02:32.1]} 13. Nbd2 {[%clk 0:02:35.8]} 13... b5 {[%clk 0:02:21.8]} 14.
Qe2 {[%clk 0:02:35.7]} 14... Be6 {[%clk 0:01:26.7]} 15. Nd4 {[%clk 0:02:28.1]}
15... Qd5 {[%clk 0:01:19.1]} 16. N2f3 {[%clk 0:02:13.3]} 16... O-O {[%clk
0:01:08.1]} 17. Nxe6 {[%clk 0:02:12.4]} 17... fxe6 {[%clk 0:01:08.8]} 18. Qxe6+
{[%clk 0:02:13]} 18... Qxe6 {[%clk 0:01:09.3]} 19. Rxe6 {[%clk 0:02:13.9]} 19...
Nd5 {[%clk 0:00:58.4]} 20. Bd2 {[%clk 0:01:55.3]} 20... Bf6 {[%clk 0:00:56.4]}
21. Rae1 {[%clk 0:01:45.5]} 21... Rfd8 {[%clk 0:00:56.6]} 22. g3 {[%clk
0:01:35.7]} 22... b4 {[%clk 0:00:52.1]} 23. Rc1 {[%clk 0:00:58.7]} 23... a5
{[%clk 0:00:51.4]} 24. Bg5 {[%clk 0:00:48.9]} 24... bxc3 {[%clk 0:00:30]} 25.
bxc3 {[%clk 0:00:36.5]} 25... Rab8 {[%clk 0:00:22.9]} 26. Rc6 {[%clk 0:00:27.7]}
26... Rb2 {[%clk 0:00:17.9]} 27. Rxc4 {[%clk 0:00:20.2]} 27... Rf8 {[%clk
0:00:17.6]} 28. Bxf6 {[%clk 0:00:09.5]} 28... Nxf6 {[%clk 0:00:18.3]} 29. Rf4
{[%clk 0:00:09]} 29... Rxa2 {[%clk 0:00:17.9]} 30. c4 {[%clk 0:00:09.3]} 30...
a4 {[%clk 0:00:16.4]} 31. c5 {[%clk 0:00:09.7]} 31... a3 {[%clk 0:00:16]} 32. c6
{[%clk 0:00:10.2]} 32... Rc8 {[%clk 0:00:16.2]} 33. Ra4 {[%clk 0:00:09.1]} 33...
Nd5 {[%clk 0:00:15.9]} 34. Nd4 {[%clk 0:00:07.7]} 34... Kf7 {[%clk 0:00:15]} 35.
Ra5 {[%clk 0:00:07]} 35... Nb4 {[%clk 0:00:14]} 36. Nb5 {[%clk 0:00:06.2]} 36...
Rxc6 {[%clk 0:00:08.2]} 37. Rxc6 {[%clk 0:00:04]} 37... Nxc6 {[%clk 0:00:08.7]}
38. Rxa3 {[%clk 0:00:04.9]} 38... Rb2 {[%clk 0:00:08.3]} 39. Nd6+ {[%clk
0:00:04.6]} 39... Ke6 {[%clk 0:00:07.9]} 40. Ne4 {[%clk 0:00:05.2]} 40... Nd4
{[%clk 0:00:07.9]} 41. Re3 {[%clk 0:00:05.5]} 41... Nf5 {[%clk 0:00:07.9]} 42.
Rf3 {[%clk 0:00:03.2]} 42... Nd4 {[%clk 0:00:07.9]} 43. Re3 {[%clk 0:00:03.4]}
43... Nf5 {[%clk 0:00:07.8]} 44. Rf3 {[%clk 0:00:03.8]} 44... h6 {[%clk
0:00:08.5]} 45. Ra3 {[%clk 0:00:03.9]} 45... Nd4 {[%clk 0:00:08.6]} 46. Nc5+
{[%clk 0:00:04]} 46... Kd5 {[%clk 0:00:08.8]} 47. Nd3 {[%clk 0:00:04.9]} 47...
Rd2 {[%clk 0:00:08.1]} 48. Nf4+ {[%clk 0:00:04.8]} 48... Ke4 {[%clk 0:00:08.4]}
49. Re3+ {[%clk 0:00:05.2]} 49... Kf5 {[%clk 0:00:09]} 50. Nd5 {[%clk
0:00:05.6]} 50... Ne2+ {[%clk 0:00:08.6]} 51. Kf1 {[%clk 0:00:04.2]} 51... Nd4
{[%clk 0:00:08.1]} 52. Nc3 {[%clk 0:00:04]} 52... g5 {[%clk 0:00:07.8]} 53. h4
{[%clk 0:00:04]} 53... g4 {[%clk 0:00:08]} 54. Ne4 {[%clk 0:00:03.8]} 54... Rd1+
{[%clk 0:00:07.6]} 55. Kg2 {[%clk 0:00:03.6]} 55... Nf3 {[%clk 0:00:08.1]} 56.
Rxf3+ {[%clk 0:00:04.1]} 56... gxf3+ {[%clk 0:00:09]} 57. Kxf3 {[%clk 0:00:05]}
57... Rd3+ {[%clk 0:00:09.6]} 0-1

[Event "*** Titled Tuesday Blitz"]
[Site "Chess.com"]
[Date "2020.12.29"]
[Round "3"]
[White "Kosak12"]
[Black "IljaJoke"]
[Result "1/2-1/2"]
[WhiteElo "2762"]
[BlackElo "2449"]
[TimeControl "180+1"]
[EndTime "10:29:31 PST"]
[Termination "Game drawn by agreement"]

1. d4 {[%clk 0:03:00.9]} 1... d5 {[%clk 0:02:59.2]} 2. c4 {[%clk 0:03:00.6]}
2... e6 {[%clk 0:02:59.6]} 3. Nc3 {[%clk 0:03:00.6]} 3... c5 {[%clk 0:03:00.1]}
4. cxd5 {[%clk 0:02:59.9]} 4... exd5 {[%clk 0:03:01]} 5. Nf3 {[%clk 0:03:00.3]}
5... Nc6 {[%clk 0:03:01.2]} 6. g3 {[%clk 0:03:01]} 6... Nf6 {[%clk 0:03:00.3]}
7. Bg2 {[%clk 0:03:01.5]} 7... cxd4 {[%clk 0:03:00.9]} 8. Nxd4 {[%clk
0:03:02.4]} 8... Bc5 {[%clk 0:03:01.2]} 9. Nb3 {[%clk 0:03:02.6]} 9... Bb6
{[%clk 0:03:01.2]} 10. O-O {[%clk 0:03:02.3]} 10... d4 {[%clk 0:03:01.1]} 11.
Na4 {[%clk 0:03:02.1]} 11... O-O {[%clk 0:03:01]} 12. Bg5 {[%clk 0:03:02.1]}
12... Re8 {[%clk 0:03:01]} 13. Re1 {[%clk 0:03:02]} 13... h6 {[%clk 0:03:01]}
14. Bxf6 {[%clk 0:02:58.5]} 14... Qxf6 {[%clk 0:03:01.9]} 15. Nxb6 {[%clk
0:02:58.8]} 15... axb6 {[%clk 0:03:02.7]} 16. Bxc6 {[%clk 0:02:59.1]} 16... bxc6
{[%clk 0:03:03.6]} 17. Qxd4 {[%clk 0:02:59.4]} 17... Qd8 {[%clk 0:03:04]} 18.
Qc3 {[%clk 0:02:59.3]} 18... c5 {[%clk 0:02:54.1]} 19. Rad1 {[%clk 0:02:57.6]}
19... Qc7 {[%clk 0:02:54.3]} 20. Nc1 {[%clk 0:02:57.8]} 20... Ba6 {[%clk
0:02:49.6]} 21. e4 {[%clk 0:02:53.1]} 21... Re7 {[%clk 0:02:35]} 22. Nd3 {[%clk
0:02:36.7]} 22... Bb7 {[%clk 0:02:09.1]} 23. f3 {[%clk 0:02:29.8]} 23... Rxa2
{[%clk 0:02:07.4]} 24. Ra1 {[%clk 0:02:16.3]} 24... Rxa1 {[%clk 0:02:04.3]} 25.
Rxa1 {[%clk 0:02:17.2]} 25... f5 {[%clk 0:01:49]} 26. exf5 {[%clk 0:02:07.4]}
26... Bxf3 {[%clk 0:01:47.4]} 27. Nf4 {[%clk 0:02:07]} 27... Be4 {[%clk
0:01:34.7]} 28. f6 {[%clk 0:02:06.3]} 28... gxf6 {[%clk 0:01:17.8]} 29. Qxf6
{[%clk 0:02:07.2]} 29... Qe5 {[%clk 0:01:17.9]} 30. Qxe5 {[%clk 0:01:54.1]}
30... Rxe5 {[%clk 0:01:18.8]} 31. Ra6 {[%clk 0:01:54.3]} 31... b5 {[%clk
0:01:03.2]} 32. Rxh6 {[%clk 0:01:52.5]} 32... b4 {[%clk 0:01:03.2]} 33. Rb6
{[%clk 0:01:36.3]} 33... Bf5 {[%clk 0:00:58]} 34. Kf2 {[%clk 0:01:35.2]} 34...
Re4 {[%clk 0:00:57.4]} 35. b3 {[%clk 0:01:12]} 35... Rd4 {[%clk 0:00:42.7]} 36.
Ke3 {[%clk 0:00:52.8]} 36... Bc2 {[%clk 0:00:42.1]} 37. Rb5 {[%clk 0:00:47]}
37... Bxb3 {[%clk 0:00:40.2]} 38. Rxc5 {[%clk 0:00:47.4]} 38... Rd1 {[%clk
0:00:40.1]} 39. Rb5 {[%clk 0:00:45.9]} 39... Re1+ {[%clk 0:00:35.5]} 40. Kf2
{[%clk 0:00:45.6]} 40... Re4 {[%clk 0:00:35.2]} 41. Nd3 {[%clk 0:00:42.5]} 41...
Bc4 {[%clk 0:00:35.1]} 42. Rb8+ {[%clk 0:00:41.7]} 42... Kg7 {[%clk 0:00:33.6]}
43. Nxb4 {[%clk 0:00:42.2]} 43... Re2+ {[%clk 0:00:33.9]} 44. Kg1 {[%clk
0:00:42.7]} 44... Kg6 {[%clk 0:00:33.5]} 45. Rf8 {[%clk 0:00:37.9]} 45... Rb2
{[%clk 0:00:33.4]} 46. Rb8 {[%clk 0:00:28.2]} 46... Kg5 {[%clk 0:00:30.5]} 47.
Nc6 {[%clk 0:00:27.8]} 47... Rd2 {[%clk 0:00:24.1]} 48. Ne5 {[%clk 0:00:26.9]}
48... Bd5 {[%clk 0:00:24]} 49. Rb5 {[%clk 0:00:16.3]} 49... Kf5 {[%clk
0:00:16.7]} 50. Nf3 {[%clk 0:00:16]} 50... Rd1+ {[%clk 0:00:15.9]} 51. Kf2
{[%clk 0:00:16]} 51... Kg4 {[%clk 0:00:14.7]} 52. Rb4+ {[%clk 0:00:15.9]} 52...
Kf5 {[%clk 0:00:12.8]} 53. Rd4 {[%clk 0:00:15.9]} 53... Bxf3 {[%clk 0:00:11.2]}
54. Rf4+ {[%clk 0:00:16]} 54... Kg5 {[%clk 0:00:10.4]} 55. Kxf3 {[%clk
0:00:16.4]} 55... Rf1+ {[%clk 0:00:09.7]} 56. Ke3 {[%clk 0:00:15.7]} 56... Rh1
{[%clk 0:00:09]} 57. h4+ {[%clk 0:00:14.1]} 57... Kh5 {[%clk 0:00:09.3]} 58. Kf3
{[%clk 0:00:13.9]} 58... Rf1+ {[%clk 0:00:09.2]} 59. Kg2 {[%clk 0:00:12]} 59...
Rxf4 {[%clk 0:00:07.8]} 60. gxf4 {[%clk 0:00:12.4]} 60... Kg4 {[%clk 0:00:08.3]}
61. h5 {[%clk 0:00:12.3]} 61... Kxh5 {[%clk 0:00:08.4]} 62. Kf3 {[%clk
0:00:12.6]} 62... Kg6 {[%clk 0:00:08.9]} 63. Ke4 {[%clk 0:00:13]} 63... Kf6
{[%clk 0:00:09.2]} 1/2-1/2